[Event "GER-ch Youth-U12 2024"]
[Site "Willingen"]
[Date "2024.05.21"]
[Round "4"]
[White "Shevchenko, Igor"]
[Black "Sheng, Ming"]
[Result "1/2-1/2"]
[ECO "E40"]
[WhiteElo "1758"]
[BlackElo "2031"]
[Annotator "NA RC"]
[PlyCount "103"]
[EventDate "2022.06.05"]
[EventType "swiss"]
[EventRounds "9"]
[EventCountry "GER"]
[SourceTitle "playchess.com"]
[Source "ChessBase"]
[SourceQuality "1"]
[TimeControl "40/4500+30:900+30"]

1. d4 {[%emt 0:00:00]} Nf6 {[%emt 0:00:00]} 2. c4 {[%emt 0:00:00]} e6 {[%emt 0:00:00]} 3. Nc3 {[%emt 0:00:00]} Bb4 {[%emt 0:00:00]} 4. e3 {[%emt 0:00:00]} O-O {[%emt 0:00:00]} 5. Bd3 {[%emt 0:00:00]} Bxc3+ {[%emt 0:00:00]} 6. bxc3 {[%emt 0:00:00]} d6 {[%emt 0:00:00]} 7. e4 {[%emt 0:06:02]} e5 {[%emt 0:00:00]} 8. Ne2 {[%emt 0:11:18]} c5 {[%emt 0:00:00]} 9. O-O {[%emt 0:07:45]} Re8 {[%emt 0:00:00] E40: Nimzo-Indian: Rubinstein (4 e3): Unusual Black 4th moves.} 10. f3 {[%emt 0:03:30]} Nc6 {[%emt 0:00:00]} 11. Be3 {[%emt 0:01:49]} b6 {[%emt 0:00:00]} 12. d5 {[%emt 0:03:04]} Na5 {[%emt 0:01:44]} 13. Nc1 {[%emt 0:00:42]} Ba6 {[%emt 0:02:26]} 14. Qe2 {[%emt 0:00:06]} Qd7 {[%emt 0:01:38]} 15. Nb3 {[%emt 0:00:10]} Qa4 {[%emt 0:02:33]} 16. Nxa5 {[%emt 0:00:29]} bxa5 {[%emt 0:00:58]} 17. Rab1 {[%emt 0:01:16]} Nd7 {[%emt 0:04:19]} 18. Rb5 {[%emt 0:14:08]} Bxb5 {[%emt 0:02:04]} 19. cxb5 {[%emt 0:00:17]} Nb6 {[%emt 0:01:50]} 20. c4 {[%emt 0:01:27]} a6 {[%emt 0:04:13]} 21. Rb1 {[%emt 0:04:42]} axb5 {[%emt 0:02:39]} 22. cxb5 {[%emt 0:01:25]} Rab8 {[%emt 0:02:17]} 23. Bc1 {[%emt 0:05:33]} c4 {[%emt 0:07:02]} 24. Bc2 {[%emt 0:02:50]} Qxa2 {[%emt 0:00:41]} 25. Rb2 {[%emt 0:02:20]} Qa3 {[%emt 0:00:35]} 26. Rb1 {[%emt 0:00:58]} Qc5+ {[%emt 0:00:59]} 27. Be3 {[%emt 0:00:01]} Qc7 {[%emt 0:00:02]} 28. Ra1 {[%emt 0:00:40]} Nd7 {[%emt 0:01:48]} 29. Ba4 {[%emt 0:00:11]} Rec8 {[%emt 0:00:36]} 30. b6 {[%emt 0:00:44]} Nxb6 {[%emt 0:02:13]} 31. Bc6 {[%emt 0:00:05]} Qd8 {[%emt 0:08:35]} 32. Qd2 {[%emt 0:02:04]} a4 {[%emt 0:02:32]} 33. Qa5 {[%emt 0:04:52]} h6 {[%emt 0:04:29]} 34. Kf2 $19 {[%emt 0:01:52]} (34. h3 $142) 34... Qc7 {[%emt 0:01:26]} 35. Qa6 {[%emt 0:03:44]} Kh8 {[%emt 0:10:00]} 36. g4 {[%emt 0:06:55]} Kg8 {[%emt 0:02:48]} 37. h4 {[%emt 0:01:20]} Nd7 {[%emt 0:05:44]} 38. Qxa4 {[%emt 0:00:58]} Rb2+ {[%emt 0:00:59]} 39. Kg3 {[%emt 0:00:17]} Nb6 {[%emt 0:00:42]} 40. Qa6 {[%emt 0:00:54]} Rb3 {[%emt 0:01:50]} 41. Ra3 {[%emt 0:00:00]} Rb8 {[%emt 0:00:00]} 42. Bc1 {[%emt 0:00:00]} Rb1 {[%emt 0:00:00]} 43. Bd2 {[%emt 0:00:46]} Qd8 {[%emt 0:00:00]} 44. Ra1 {[%emt 0:04:14]} Nc8 {[%emt 0:00:00]} 45. Rxb1 {[%emt 0:03:55]} Rxb1 {[%emt 0:00:00]} 46. Ba5 {[%emt 0:01:48]} Nb6 {[%emt 0:01:37]} 47. Bxb6 {[%emt 0:00:53]} Qxb6 {[%emt 0:01:22]} 48. Qc8+ {[%emt 0:00:16]} Kh7 {[%emt 0:01:48]} 49. Qf5+ {[%emt 0:00:06]} Kh8 {[%emt 0:00:37]} 50. Qc8+ {[%emt 0:00:06]} Kh7 {[%emt 0:00:14]} 51. Qf5+ {[%emt 0:00:06]} Kg8 {[%emt 0:00:56]} 52. Qc8+ {[%emt 0:00:10]} 1/2-1/2

[Event "GER-ch Youth-U12 2024"]
[Site "Willingen"]
[Date "2024.05.21"]
[Round "4"]
[White "Chua, Daniel James"]
[Black "Li, Yunqi"]
[Result "0-1"]
[ECO "C02"]
[WhiteElo "1751"]
[BlackElo "1940"]
[Annotator "RC"]
[PlyCount "76"]
[EventDate "2022.06.05"]
[EventType "swiss"]
[EventRounds "9"]
[EventCountry "GER"]
[SourceTitle "playchess.com"]
[Source "ChessBase"]
[SourceQuality "1"]
[TimeControl "40/4500+30:900+30"]

1. e4 {[%emt 0:00:00]} e6 {[%emt 0:00:00]} 2. d4 {[%emt 0:00:00]} d5 {[%emt 0:00:00]} 3. e5 {[%emt 0:00:00]} c5 {[%emt 0:00:00]} 4. c3 {[%emt 0:00:00]} Nc6 {[%emt 0:00:00]} 5. Nf3 {[%emt 0:00:00]} Bd7 {[%emt 0:00:00]} 6. Be2 {[%emt 0:00:00]} f6 {[%emt 0:00:00]} 7. O-O {[%emt 0:00:00]} fxe5 {[%emt 0:00:00]} 8. Nxe5 {[%emt 0:00:00]} Nxe5 {[%emt 0:00:00]} 9. dxe5 {[%emt 0:00:00]} Qc7 {[%emt 0:00:00]} 10. Re1 {[%emt 0:00:00]} O-O-O {[%emt 0:00:00]} 11. Bf1 {[%emt 0:00:00]} Nh6 {[%emt 0:00:00]} 12. a4 {[%emt 0:00:00]} Nf7 {[%emt 0:00:00]} 13. Bf4 {[%emt 0:00:00]} Be7 {[%emt 0:00:00]} 14. Na3 {[%emt 0:00:00]} Kb8 {[%emt 0:02:06]} 15. b4 {[%emt 0:00:00]} c4 {[%emt 0:00:15]} 16. Nb5 {[%emt 0:00:00]} Bxb5 {[%emt 0:03:56]} 17. axb5 {[%emt 0:00:00]} b6 {[%emt 0:02:08]} 18. Ra6 {[%emt 0:00:00]} h5 {[%emt 0:00:25]} 19. Qa4 {[%emt 0:00:00]} Bg5 {[%emt 0:00:20]} 20. Bxg5 {[%emt 0:06:58]} Nxg5 {[%emt 0:00:10]} 21. Qc2 {[%emt 0:02:27]} Rh6 {[%emt 0:02:42]} 22. Rea1 {[%emt 0:01:33]} Rd7 {[%emt 0:01:07]} 23. f4 {[%emt 0:08:42]} Nf7 {[%emt 0:00:46]} 24. Be2 {[%emt 0:14:56]} Qd8 {[%emt 0:01:39]} 25. Qa4 {[%emt 0:00:34]} Qc7 {[%emt 0:00:35]} 26. Qd1 {[%emt 0:00:50]} Qd8 {[%emt 0:06:44]} 27. Qa4 {[%emt 0:17:38]} Qc7 {[%emt 0:00:10]} 28. g3 {[%emt 0:00:46]} g5 {[%emt 0:04:45]} 29. h4 {[%emt 0:04:06]} gxh4 {[%emt 0:02:01]} 30. gxh4 {[%emt 0:00:02]} Rg6+ {[%emt 0:01:46]} 31. Kh2 {[%emt 0:00:44]} Nxe5 {[%emt 0:00:54]} 32. Rf1 {[%emt 0:04:36]} Rdg7 {[%emt 0:01:27]} 33. Rf2 {[%emt 0:04:58]} Ng4+ {[%emt 0:00:27]} 34. Bxg4 {[%emt 0:00:19]} Rxg4 {[%emt 0:00:07]} 35. Kh3 {[%emt 0:00:51]} Rxf4 {[%emt 0:00:15]} 36. Qc2 {[%emt 0:00:02]} Rxh4+ {[%emt 0:00:08]} 37. Kxh4 {[%emt 0:00:12]} Qg3+ {[%emt 0:00:03]} 38. Kxh5 {[%emt 0:00:15]} Qg5# {[%emt 0:00:09]} 0-1

[Event "GER-ch Youth-U12 2024"]
[Site "Willingen"]
[Date "2024.05.21"]
[Round "4"]
[White "Draude, Theo"]
[Black "Hellriegel, Hannes"]
[Result "0-1"]
[ECO "C45"]
[WhiteElo "1731"]
[BlackElo "1701"]
[Annotator "NA RC"]
[PlyCount "74"]
[EventDate "2022.06.05"]
[EventType "swiss"]
[EventRounds "9"]
[EventCountry "GER"]
[SourceTitle "playchess.com"]
[Source "ChessBase"]
[SourceQuality "1"]
[TimeControl "40/4500+30:900+30"]

1. e4 {[%emt 0:00:00]} e5 {[%emt 0:00:00]} 2. Nf3 {[%emt 0:00:00]} Nc6 {[%emt 0:00:00]} 3. d4 {[%emt 0:00:00]} exd4 {[%emt 0:00:00]} 4. Nxd4 {[%emt 0:00:00]} Nf6 {[%emt 0:00:00]} 5. Nxc6 {[%emt 0:00:00]} bxc6 {[%emt 0:00:00]} 6. e5 {[%emt 0:00:00]} Ne4 {[%emt 0:00:00]} 7. Qe2 {[%emt 0:00:00]} Nc5 {[%emt 0:00:00]} 8. b3 {[%emt 0:00:00]} Be7 {[%emt 0:04:12]} 9. g3 {[%emt 0:00:00]} d5 {[%emt 0:04:12]} 10. Bg2 {[%emt 0:22:39]} O-O {[%emt 0:08:17]} 11. Nd2 {[%emt 0:03:18]} f6 {[%emt 0:04:34]} 12. Bb2 {[%emt 0:05:59]} Bf5 {[%emt 0:11:15]} 13. Nf3 {[%emt 0:06:59]} fxe5 {[%emt 0:06:05]} 14. Nxe5 {[%emt 0:16:44]} Qd6 {[%emt 0:07:12]} 15. O-O {[%emt 0:04:46]} Bf6 {[%emt 0:03:52]} 16. f4 {[%emt 0:03:58]} Rae8 {[%emt 0:03:18]} 17. Rad1 {[%emt 0:01:29]} Nd7 {[%emt 0:03:31]} 18. Rfe1 {[%emt 0:01:22]} Bxe5 {[%emt 0:02:08]} 19. fxe5 {[%emt 0:01:25]} Qc5+ {[%emt 0:02:15]} 20. Bd4 {[%emt 0:00:36]} Qe7 {[%emt 0:04:01]} 21. c4 {[%emt 0:01:08]} Kh8 {[%emt 0:04:54]} 22. cxd5 {[%emt 0:00:36]} cxd5 {[%emt 0:00:34]} 23. Bxd5 {[%emt 0:00:15]} c5 {[%emt 0:00:30]} 24. Bc3 {[%emt 0:00:42]} Nb6 {[%emt 0:03:28]} 25. Bg2 {[%emt 0:01:49]} Qc7 {[%emt 0:02:52]} 26. Rd6 {[%emt 0:01:21]} Be6 {[%emt 0:03:02]} 27. Red1 {[%emt 0:01:35]} Qf7 {[%emt 0:01:59]} 28. Ba5 {[%emt 0:01:58]} Rb8 {[%emt 0:03:09]} 29. Rc6 {[%emt 0:01:21]} Rfc8 {[%emt 0:00:53]} 30. Rdd6 {[%emt 0:00:40]} Rxc6 {[%emt 0:00:34]} 31. Rxc6 {[%emt 0:00:13]} Qe7 {[%emt 0:01:57]} 32. Qc2 {[%emt 0:01:18]} Rc8 {[%emt 0:01:38]} 33. Qe4 {[%emt 0:01:52]} Qd7 {[%emt 0:01:02]} 34. Rd6 {[%emt 0:00:20]} Qe7 {[%emt 0:00:25]} 35. Bxb6 {[%emt 0:00:19]} axb6 {[%emt 0:00:06]} 36. Rxb6 {[%emt 0:00:38]} c4 {[%emt 0:00:50]} 37. bxc4 {[%emt 0:01:18]} Qc5+ {[%emt 0:00:00]} 0-1

[Event "GER-ch Youth-U12 2024"]
[Site "Willingen"]
[Date "2024.05.21"]
[Round "4"]
[White "Gersemann, Karl"]
[Black "Belin, Anton"]
[Result "1/2-1/2"]
[ECO "C07"]
[WhiteElo "1729"]
[BlackElo "1948"]
[Annotator "RC"]
[PlyCount "52"]
[EventDate "2022.06.05"]
[EventType "swiss"]
[EventRounds "9"]
[EventCountry "GER"]
[SourceTitle "playchess.com"]
[Source "ChessBase"]
[SourceQuality "1"]
[TimeControl "40/4500+30:900+30"]

1. e4 {[%emt 0:00:00]} e6 {[%emt 0:00:00]} 2. d4 {[%emt 0:00:00]} d5 {[%emt 0:00:00]} 3. Nd2 {[%emt 0:00:00]} c5 {[%emt 0:00:00]} 4. exd5 {[%emt 0:00:00]} Qxd5 {[%emt 0:00:00]} 5. Ngf3 {[%emt 0:00:00]} cxd4 {[%emt 0:00:00]} 6. Bc4 {[%emt 0:00:00]} Qd6 {[%emt 0:00:00]} 7. O-O {[%emt 0:00:00]} Nf6 {[%emt 0:00:00]} 8. Nb3 {[%emt 0:00:00]} Nc6 {[%emt 0:00:00]} 9. Nbxd4 {[%emt 0:00:00]} Nxd4 {[%emt 0:00:00]} 10. Nxd4 {[%emt 0:00:00]} a6 {[%emt 0:00:00]} 11. c3 {[%emt 0:00:00]} Be7 {[%emt 0:00:00]} 12. Qe2 {[%emt 0:00:00]} O-O {[%emt 0:00:14]} 13. Bg5 {[%emt 0:00:00]} e5 {[%emt 0:01:52]} 14. Rfe1 {[%emt 0:07:47]} Ng4 {[%emt 0:07:40]} 15. Bxe7 {[%emt 0:01:25]} Qxe7 {[%emt 0:00:14]} 16. Nf3 {[%emt 0:00:10]} Qc5 {[%emt 0:04:05]} 17. b4 {[%emt 0:01:44]} Qc7 {[%emt 0:01:21]} 18. h3 {[%emt 0:01:20]} Nf6 {[%emt 0:02:00]} 19. Nxe5 {[%emt 0:02:57]} b5 {[%emt 0:01:10]} 20. Bb3 {[%emt 0:02:31]} Bb7 {[%emt 0:03:29]} 21. Qc2 {[%emt 0:18:49]} Nd5 {[%emt 0:08:57]} 22. Bxd5 {[%emt 0:02:06]} Bxd5 {[%emt 0:00:06]} 23. Nd3 {[%emt 0:00:18]} Qc6 {[%emt 0:01:15]} 24. Nf4 {[%emt 0:04:12]} Bc4 {[%emt 0:02:50]} 25. Qe4 {[%emt 0:04:52]} Qf6 {[%emt 0:02:39]} 26. Qd4 {[%emt 0:08:55]} Qxd4 {[%emt 0:02:46]} 1/2-1/2

[Event "GER-ch Youth-U12 2024"]
[Site "Willingen"]
[Date "2024.05.21"]
[Round "4"]
[White "Vinogradov, Ilia"]
[Black "Zimmer, Tim"]
[Result "0-1"]
[ECO "C50"]
[WhiteElo "1723"]
[BlackElo "1772"]
[Annotator "NA RC"]
[PlyCount "70"]
[EventDate "2022.06.05"]
[EventType "swiss"]
[EventRounds "9"]
[EventCountry "GER"]
[SourceTitle "playchess.com"]
[Source "ChessBase"]
[SourceQuality "1"]
[TimeControl "40/4500+30:900+30"]

1. e4 {[%emt 0:00:00]} e5 {[%emt 0:00:00]} 2. Nf3 {[%emt 0:00:00]} Nc6 {[%emt 0:00:00]} 3. Bc4 {[%emt 0:00:00]} Bc5 {[%emt 0:00:00]} 4. O-O {[%emt 0:00:00]} Nf6 {[%emt 0:00:00]} 5. d4 {[%emt 0:00:00]} Bxd4 {[%emt 0:00:00]} 6. Nxd4 {[%emt 0:00:00]} Nxd4 {[%emt 0:00:00]} 7. f4 {[%emt 0:00:00]} d6 {[%emt 0:00:00]} 8. fxe5 {[%emt 0:00:00]} dxe5 {[%emt 0:00:00]} 9. Bg5 {[%emt 0:00:00]} Qe7 {[%emt 0:00:00]} 10. Na3 {[%emt 0:00:00]} Bd7 {[%emt 0:00:00]} 11. c3 {[%emt 0:00:00]} Ne6 {[%emt 0:01:12]} 12. Bxf6 {[%emt 0:00:00]} gxf6 {[%emt 0:00:33]} 13. Bxe6 {[%emt 0:00:00]} Bxe6 {[%emt 0:06:19]} 14. Qf3 {[%emt 0:02:48]} O-O-O {[%emt 0:02:02]} 15. Rfd1 {[%emt 0:38:38]} Rxd1+ {[%emt 0:07:33]} 16. Qxd1 {[%emt 0:03:37]} Qc5+ {[%emt 0:03:27]} 17. Kh1 {[%emt 0:01:19]} Qf2 {[%emt 0:02:46]} 18. b3 {[%emt 0:11:50]} Rd8 {[%emt 0:18:17]} 19. Qe1 {[%emt 0:02:34]} Qxe1+ {[%emt 0:01:16]} 20. Rxe1 {[%emt 0:00:06]} Rd2 {[%emt 0:00:18]} 21. Ra1 {[%emt 0:00:19]} Re2 {[%emt 0:05:33]} 22. Kg1 {[%emt 0:00:18]} Rxe4 {[%emt 0:00:10]} 23. Kf2 {[%emt 0:00:14]} Kd7 {[%emt 0:04:16]} 24. h3 {[%emt 0:02:27]} f5 {[%emt 0:02:19]} 25. g3 {[%emt 0:00:46]} f4 {[%emt 0:00:52]} 26. Rd1+ {[%emt 0:02:12]} Ke7 {[%emt 0:01:32]} 27. Rd3 {[%emt 0:01:37]} Bxh3 {[%emt 0:02:03]} 28. gxf4 {[%emt 0:00:27]} Rxf4+ {[%emt 0:00:15]} 29. Rf3 {[%emt 0:02:07]} Rxf3+ {[%emt 0:00:24]} 30. Kxf3 {[%emt 0:00:06]} Bf5 {[%emt 0:01:19]} 31. Nc4 {[%emt 0:00:58]} Ke6 {[%emt 0:00:28]} 32. Ne3 {[%emt 0:00:49]} h5 {[%emt 0:01:01]} 33. Kg3 {[%emt 0:00:21]} Bd3 {[%emt 0:00:12]} 34. a3 {[%emt 0:01:01]} f5 {[%emt 0:00:14]} 35. Kf3 {[%emt 0:01:25]} f4 {[%emt 0:00:44]} 0-1

[Event "GER-ch Youth-U12 2024"]
[Site "Willingen"]
[Date "2024.05.21"]
[Round "4"]
[White "Wagener, Nicolas"]
[Black "Heitmann, Erik"]
[Result "1/2-1/2"]
[ECO "B01"]
[WhiteElo "1713"]
[BlackElo "1644"]
[Annotator "NA RC"]
[PlyCount "99"]
[EventDate "2022.06.05"]
[EventType "swiss"]
[EventRounds "9"]
[EventCountry "GER"]
[SourceTitle "playchess.com"]
[Source "ChessBase"]
[SourceQuality "1"]
[TimeControl "40/4500+30:900+30"]

1. e4 {[%emt 0:00:00]} d5 {[%emt 0:00:00]} 2. exd5 {[%emt 0:00:00]} Qxd5 {[%emt 0:00:00]} 3. Nc3 {[%emt 0:00:00]} Qa5 {[%emt 0:00:00]} 4. d4 {[%emt 0:00:00]} c6 {[%emt 0:00:00]} 5. Nf3 {[%emt 0:00:00]} Bf5 {[%emt 0:00:00]} 6. d5 {[%emt 0:00:00]} e6 {[%emt 0:00:00]} 7. d6 {[%emt 0:00:00]} Qb4 {[%emt 0:00:00]} 8. Bg5 {[%emt 0:00:00]} h6 {[%emt 0:00:00]} 9. Ne5 {[%emt 0:00:00]} Bxd6 {[%emt 0:05:23]} 10. Nc4 {[%emt 0:02:00]} Bc7 {[%emt 0:03:04]} 11. a3 {[%emt 0:11:40]} Qf8 {[%emt 0:01:29]} 12. Bh4 {[%emt 0:14:37]} Nd7 {[%emt 0:01:51]} 13. Bd3 {[%emt 0:11:57]} Ngf6 {[%emt 0:03:06]} 14. Bxf5 {[%emt 0:00:50]} exf5 {[%emt 0:00:16]} 15. Bxf6 {[%emt 0:00:56]} gxf6 {[%emt 0:00:56]} 16. Qd3 {[%emt 0:02:51]} Qg7 {[%emt 0:02:40]} 17. O-O {[%emt 0:05:14]} O-O-O {[%emt 0:09:13]} 18. Qxf5 {[%emt 0:02:36]} Rhg8 {[%emt 0:00:35]} 19. g3 {[%emt 0:00:19]} Qg6 {[%emt 0:01:45]} 20. Qxg6 {[%emt 0:02:34]} fxg6 {[%emt 0:00:21]} 21. Ne4 {[%emt 0:00:16]} Ne5 {[%emt 0:01:40]} 22. Nxe5 {[%emt 0:01:47]} Bxe5 {[%emt 0:00:52]} 23. c3 {[%emt 0:00:12]} f5 {[%emt 0:00:10]} 24. Nc5 {[%emt 0:01:08]} Rd2 {[%emt 0:01:36]} 25. Rab1 {[%emt 0:00:47]} Bd6 {[%emt 0:01:09]} 26. Nb3 {[%emt 0:00:28]} Re2 {[%emt 0:02:34]} 27. Rfe1 {[%emt 0:00:30]} Rge8 {[%emt 0:00:49]} 28. Kf1 {[%emt 0:01:15]} Rxe1+ {[%emt 0:00:26]} 29. Rxe1 {[%emt 0:00:09]} Rxe1+ {[%emt 0:00:58]} 30. Kxe1 {[%emt 0:00:04]} c5 {[%emt 0:00:08]} 31. Ke2 {[%emt 0:01:14]} Kd7 {[%emt 0:00:27]} 32. h4 {[%emt 0:00:38]} Ke6 {[%emt 0:00:50]} 33. Na5 {[%emt 0:01:58]} b6 {[%emt 0:00:52]} 34. Nc4 {[%emt 0:00:16]} Bc7 {[%emt 0:00:55]} 35. Ne3 {[%emt 0:01:19]} h5 {[%emt 0:00:46]} 36. c4 {[%emt 0:02:35]} Be5 {[%emt 0:01:51]} 37. b3 {[%emt 0:00:53]} Bb2 {[%emt 0:02:37]} 38. a4 {[%emt 0:00:10]} Bd4 {[%emt 0:03:29]} 39. Nd5 {[%emt 0:01:25]} Be5 {[%emt 0:04:11]} 40. f4 {[%emt 0:03:14]} Bf6 {[%emt 0:03:04]} 41. Nc7+ {[%emt 0:28:29]} Kf7 {[%emt 0:16:15]} 42. Nb5 {[%emt 0:01:05]} a5 {[%emt 0:00:10]} 43. Kf3 {[%emt 0:03:16]} Bd8 {[%emt 0:01:35]} 44. Na3 {[%emt 0:00:34]} Bf6 {[%emt 0:01:02]} 45. Nc2 {[%emt 0:00:23]} Bd8 {[%emt 0:00:35]} 46. Ne1 {[%emt 0:00:26]} Bc7 {[%emt 0:00:18]} 47. Nd3 {[%emt 0:00:11]} Kf6 {[%emt 0:01:10]} 48. Ke3 {[%emt 0:00:58]} Kg7 {[%emt 0:00:07]} 49. Ne5 Kh7 50. Nc6 {[%emt 0:00:02]} 1/2-1/2

[Event "GER-ch Youth-U12 2024"]
[Site "Willingen"]
[Date "2024.05.21"]
[Round "4"]
[White "Sasikumar Anitha, Sarvesh"]
[Black "Fischermann, Simon"]
[Result "0-1"]
[ECO "C84"]
[WhiteElo "1703"]
[BlackElo "1789"]
[Annotator "NA RC"]
[PlyCount "98"]
[EventDate "2022.06.05"]
[EventType "swiss"]
[EventRounds "9"]
[EventCountry "GER"]
[SourceTitle "playchess.com"]
[Source "ChessBase"]
[SourceQuality "1"]
[TimeControl "40/4500+30:900+30"]

1. e4 {[%emt 0:00:00]} e5 {[%emt 0:00:00]} 2. Nf3 {[%emt 0:00:00]} Nc6 {[%emt 0:00:00]} 3. Bb5 {[%emt 0:00:00]} a6 {[%emt 0:00:00]} 4. Ba4 {[%emt 0:00:00]} Nf6 {[%emt 0:00:00]} 5. d3 {[%emt 0:00:00]} b5 {[%emt 0:00:00]} 6. Bb3 {[%emt 0:00:00]} Be7 {[%emt 0:00:00]} 7. O-O {[%emt 0:00:00]} d6 {[%emt 0:00:00]} 8. h3 {[%emt 0:00:00]} O-O {[%emt 0:00:00]} 9. a4 {[%emt 0:00:00]} Na5 {[%emt 0:00:00]} 10. Ba2 {[%emt 0:00:25]} c5 {[%emt 0:00:00]} 11. c3 {[%emt 0:02:13]} Bb7 {[%emt 0:00:00]} 12. Re1 {[%emt 0:07:39]} Re8 {[%emt 0:00:00]} 13. Nbd2 {[%emt 0:03:04]} h6 {[%emt 0:00:00]} 14. Nf1 {[%emt 0:02:09]} c4 {[%emt 0:00:37]} 15. Ng3 {[%emt 0:06:27]} cxd3 {[%emt 0:01:24]} 16. Qxd3 {[%emt 0:10:51]} bxa4 {[%emt 0:00:35]} 17. Be3 {[%emt 0:04:49]} Nb3 {[%emt 0:01:15]} 18. Rad1 {[%emt 0:02:23]} Qa5 {[%emt 0:03:45]} 19. Nd2 {[%emt 0:15:03]} d5 {[%emt 0:05:37]} 20. Nxb3 {[%emt 0:02:27]} axb3 {[%emt 0:02:26]} 21. Bxb3 {[%emt 0:00:38]} Rad8 {[%emt 0:02:09]} 22. exd5 {[%emt 0:04:49]} Bxd5 {[%emt 0:04:21]} 23. Bxd5 {[%emt 0:02:02]} Rxd5 {[%emt 0:01:24]} 24. Qc4 {[%emt 0:00:44]} Qb5 {[%emt 0:29:36]} 25. Qxb5 {[%emt 0:06:32]} Rxb5 {[%emt 0:02:17]} 26. b4 {[%emt 0:00:56]} Rc8 {[%emt 0:00:25]} 27. Nf5 {[%emt 0:01:56]} Bf8 {[%emt 0:05:58]} 28. Rc1 {[%emt 0:00:56]} Kh7 {[%emt 0:01:20]} 29. Red1 {[%emt 0:01:50]} Rd5 {[%emt 0:13:01]} 30. Rxd5 {[%emt 0:02:47]} Nxd5 {[%emt 0:00:01]} 31. Bd2 {[%emt 0:00:13]} g6 {[%emt 0:03:18]} 32. Ne3 {[%emt 0:00:35]} Nf4 {[%emt 0:00:14]} 33. Kf1 {[%emt 0:00:56]} f5 {[%emt 0:01:13]} 34. Ra1 {[%emt 0:00:30]} Rc6 {[%emt 0:00:28]} 35. Ke1 {[%emt 0:00:39]} e4 {[%emt 0:01:49]} 36. Ra3 {[%emt 0:01:13]} Bg7 {[%emt 0:00:07]} 37. Kf1 {[%emt 0:01:27]} Kg8 {[%emt 0:01:26]} 38. Nd1 {[%emt 0:00:47]} Nd5 {[%emt 0:02:41]} 39. Ke2 {[%emt 0:00:52]} Kf7 {[%emt 0:01:39]} 40. f3 {[%emt 0:01:20]} exf3+ {[%emt 0:00:25]} 41. Kxf3 {[%emt 0:18:08]} g5 {[%emt 0:16:17]} 42. g4 {[%emt 0:01:30]} f4 {[%emt 0:01:19]} 43. Be1 {[%emt 0:00:47]} Ke6 {[%emt 0:01:37]} 44. Bd2 {[%emt 0:00:58]} Be5 {[%emt 0:00:00]} 45. Be1 {[%emt 0:00:00]} Nc7 {[%emt 0:00:00]} 46. Nb2 {[%emt 0:00:00]} Nb5 {[%emt 0:00:00]} 47. Ra1 {[%emt 0:00:00]} Bxc3 {[%emt 0:00:00]} 48. Bxc3 {[%emt 0:00:00]} Rxc3+ {[%emt 0:00:00]} 49. Ke4 {[%emt 0:00:00]} Re3# {[%emt 0:00:00]} 0-1

[Event "GER-ch Youth-U12 2024"]
[Site "Willingen"]
[Date "2024.05.21"]
[Round "4"]
[White "Andersen, Jonathan"]
[Black "Schulz, Robin"]
[Result "0-1"]
[ECO "B13"]
[WhiteElo "1693"]
[BlackElo "1730"]
[Annotator "NA RC"]
[PlyCount "55"]
[EventDate "2022.06.05"]
[EventType "swiss"]
[EventRounds "9"]
[EventCountry "GER"]
[SourceTitle "playchess.com"]
[Source "ChessBase"]
[SourceQuality "1"]
[TimeControl "40/4500+30:900+30"]

1. e4 {[%emt 0:00:00]} c6 {[%emt 0:00:00]} 2. d4 {[%emt 0:00:00]} d5 {[%emt 0:00:00]} 3. exd5 {[%emt 0:00:07]} cxd5 4. Bd3 {[%emt 0:00:00]} Nc6 {[%emt 0:00:00]} 5. c3 {[%emt 0:00:00]} Nf6 {[%emt 0:00:00]} 6. Bf4 {[%emt 0:00:00]} Bg4 {[%emt 0:00:00]} 7. Qb3 {[%emt 0:00:00]} Qd7 {[%emt 0:00:00]} 8. Nd2 {[%emt 0:00:00]} e6 {[%emt 0:00:00]} 9. Ngf3 {[%emt 0:00:00]} Bxf3 {[%emt 0:00:00]} 10. Nxf3 {[%emt 0:00:00]} Bd6 {[%emt 0:00:00]} 11. Be5 {[%emt 0:00:00]} O-O-O {[%emt 0:00:00]} 12. O-O {[%emt 0:00:00]} Ng4 {[%emt 0:00:00]} 13. Bxd6 {[%emt 0:00:00]} Qxd6 {[%emt 0:00:00]} 14. a4 {[%emt 0:00:00]} h5 {[%emt 0:00:00]} 15. a5 {[%emt 0:00:00]} e5 {[%emt 0:00:54]} 16. a6 {[%emt 0:02:47]} b6 {[%emt 0:00:07]} 17. c4 {[%emt 0:26:46]} e4 {[%emt 0:11:08]} 18. c5 {[%emt 0:00:15]} Nxd4 {[%emt 0:01:56]} 19. cxd6 {[%emt 0:00:06]} Nxb3 {[%emt 0:00:05]} 20. Ra3 {[%emt 0:00:15]} Nc5 {[%emt 0:00:09]} 21. Bb5 {[%emt 0:00:13]} exf3 {[%emt 0:00:39]} 22. Rxf3 {[%emt 0:00:05]} Nf6 {[%emt 0:01:12]} 23. Rc1 {[%emt 0:00:08]} Kb8 {[%emt 0:01:22]} 24. b4 {[%emt 0:00:05]} Ne6 {[%emt 0:00:29]} 25. Ba4 {[%emt 0:04:54]} Rxd6 {[%emt 0:00:41]} 26. Rfc3 {[%emt 0:00:19]} d4 {[%emt 0:00:38]} 27. Rd3 {[%emt 0:00:09]} Nf4 {[%emt 0:00:17]} 28. Rdd1 {[%emt 0:00:11]} 0-1

[Event "GER-ch Youth-U12 2024"]
[Site "Willingen"]
[Date "2024.05.21"]
[Round "4"]
[White "Vu Hoang Bach"]
[Black "Nezhyvenko, Mykhaylo"]
[Result "0-1"]
[ECO "A09"]
[WhiteElo "1677"]
[BlackElo "2075"]
[Annotator "NA RC"]
[PlyCount "42"]
[EventDate "2022.06.05"]
[EventType "swiss"]
[EventRounds "9"]
[EventCountry "GER"]
[SourceTitle "playchess.com"]
[Source "ChessBase"]
[SourceQuality "1"]
[TimeControl "40/4500+30:900+30"]

1. Nf3 {[%emt 0:00:00]} d5 {[%emt 0:00:00]} 2. g3 {[%emt 0:00:00]} Nf6 {[%emt 0:00:00]} 3. Bg2 {[%emt 0:00:00]} c5 {[%emt 0:00:00]} 4. O-O {[%emt 0:00:00]} Nc6 {[%emt 0:00:00]} 5. c4 {[%emt 0:00:00]} d4 {[%emt 0:00:00]} 6. d3 {[%emt 0:00:00]} e5 {[%emt 0:00:00]} 7. e3 {[%emt 0:00:00]} dxe3 {[%emt 0:00:00]} 8. fxe3 {[%emt 0:00:00]} Be7 {[%emt 0:00:00]} 9. b3 {[%emt 0:00:00]} Bg4 {[%emt 0:00:00]} 10. h3 {[%emt 0:00:36]} Bh5 {[%emt 0:00:00]} 11. a3 {[%emt 0:04:22]} Qd6 {[%emt 0:03:20]} 12. Qc2 {[%emt 0:18:05]} Rd8 {[%emt 0:05:06]} 13. Bb2 {[%emt 0:03:40]} O-O {[%emt 0:09:06]} 14. Ne1 {[%emt 0:02:42]} e4 {[%emt 0:01:08]} 15. g4 {[%emt 0:00:33]} exd3 {[%emt 0:06:58]} 16. Qd2 $19 {[%emt 0:00:53]} Bg6 {[%emt 0:02:15]} 17. Nc3 {[%emt 0:00:34]} Qg3 {[%emt 0:01:54]} 18. Rf3 {[%emt 0:04:35]} Qh4 {[%emt 0:00:19]} 19. Qf2 {[%emt 0:01:57]} Ne4 {[%emt 0:03:10]} 20. Qxh4 {[%emt 0:02:53]} Bxh4 {[%emt 0:00:04]} 21. Rd1 {[%emt 0:00:33]} d2 {[%emt 0:00:23]} 0-1